[Event "Titled Tuesday Blitz July 4 Early 2023"]
[White "Romero Ruscalleda, Josep"]
[Black "WindWhistler11"]
[WhiteFideId "2231859"]
[WhiteElo "2416"]
[BlackElo "2537"]
[Result "0-1"]
[Round "8"]
[TimeControl "180+2"]
[Date "2023.07.04"]
[WhiteClock "0:00:16"]
[BlackClock "0:00:18"]
[Board "117"]

1. e4 {[%clk 0:03:00]}  e6 {[%clk 0:02:58]} 2. d4 {[%clk 0:03:00]}  d5 {[%clk 0:02:58]} 3. e5 {[%clk 0:03:00]}  c5 {[%clk 0:02:57]} 4. c3 {[%clk 0:03:01]}  Nc6 {[%clk 0:02:57]} 5. Be3 {[%clk 0:03:01]}  Bd7 {[%clk 0:02:56]} 6. Nf3 {[%clk 0:02:59]}  Qc7 {[%clk 0:02:45]} 7. Qd2 {[%clk 0:02:55]}  Nge7 {[%clk 0:02:40]} 8. Bd3 {[%clk 0:02:52]}  Nf5 {[%clk 0:02:30]} 9. O-O {[%clk 0:02:51]}  g6 {[%clk 0:02:18]} 10. Re1 {[%clk 0:02:32]}  Nxe3 {[%clk 0:02:04]} 11. fxe3 {[%clk 0:02:31]}  Bg7 {[%clk 0:01:45]} 12. h4 {[%clk 0:02:28]}  f5 {[%clk 0:01:37]} 13. exf6 {[%clk 0:02:22]}  Bxf6 {[%clk 0:01:37]} 14. e4 {[%clk 0:02:02]}  O-O-O {[%clk 0:01:27]} 15. e5 {[%clk 0:02:01]}  Be7 {[%clk 0:01:24]} 16. Na3 {[%clk 0:01:48]}  a6 {[%clk 0:01:21]} 17. Nc2 {[%clk 0:01:48]}  c4 {[%clk 0:01:18]} 18. Bf1 {[%clk 0:01:48]}  h6 {[%clk 0:01:15]} 19. b3 {[%clk 0:01:45]}  Na5 {[%clk 0:01:12]} 20. Rab1 {[%clk 0:01:35]}  g5 {[%clk 0:01:02]} 21. h5 {[%clk 0:01:34]}  Be8 {[%clk 0:00:58]} 22. g4 {[%clk 0:01:33]}  Rf8 {[%clk 0:00:58]} 23. Bg2 {[%clk 0:01:31]}  Rf4 {[%clk 0:00:58]} 24. Nh2 {[%clk 0:01:28]}  Bb5 {[%clk 0:00:51]} 25. Ne3 {[%clk 0:01:26]}  Rdf8 {[%clk 0:00:46]} 26. b4 {[%clk 0:01:16]}  Nc6 {[%clk 0:00:46]} 27. Rf1 {[%clk 0:01:13]}  Nd8 {[%clk 0:00:43]} 28. Rf3 {[%clk 0:01:13]}  Rxf3 {[%clk 0:00:41]} 29. Nxf3 {[%clk 0:01:12]}  Ba4 {[%clk 0:00:34]} 30. Rf1 {[%clk 0:01:10]}  Qd7 {[%clk 0:00:32]} 31. Ne1 {[%clk 0:01:07]}  Qe8 {[%clk 0:00:30]} 32. Rxf8 {[%clk 0:01:05]}  Qxf8 {[%clk 0:00:31]} 33. Qf2 {[%clk 0:01:05]}  Kd7 {[%clk 0:00:26]} 34. Qxf8 {[%clk 0:01:02]}  Bxf8 {[%clk 0:00:27]} 35. Kf2 {[%clk 0:00:57]}  Nc6 {[%clk 0:00:25]} 36. Ke2 {[%clk 0:00:55]}  a5 {[%clk 0:00:25]} 37. a3 {[%clk 0:00:55]}  axb4 {[%clk 0:00:24]} 38. axb4 {[%clk 0:00:54]}  Bxb4 {[%clk 0:00:24]} 39. cxb4 {[%clk 0:00:54]}  Nxd4+ {[%clk 0:00:25]} 40. Kd2 {[%clk 0:00:53]}  Nc6 {[%clk 0:00:24]} 41. N1c2 {[%clk 0:00:50]}  Bxc2 {[%clk 0:00:22]} 42. Nxc2 {[%clk 0:00:50]}  Nxe5 {[%clk 0:00:22]} 43. Nd4 {[%clk 0:00:43]}  Nxg4 {[%clk 0:00:15]} 44. Bh3 {[%clk 0:00:43]}  Nf6 {[%clk 0:00:16]} 45. Bxe6+ {[%clk 0:00:43]}  Kd6 {[%clk 0:00:17]} 46. Bf7 {[%clk 0:00:42]}  Ke5 {[%clk 0:00:15]} 47. Kc3 {[%clk 0:00:21]}  Ne4+ {[%clk 0:00:15]} 48. Kc2 {[%clk 0:00:20]}  Kxd4 {[%clk 0:00:15]} 49. b5 {[%clk 0:00:19]}  Nd6 {[%clk 0:00:15]} 50. Bg6 {[%clk 0:00:19]}  Nxb5 {[%clk 0:00:15]} 51. Kd2 {[%clk 0:00:19]}  Nd6 {[%clk 0:00:16]} 52. Ke2 {[%clk 0:00:19]}  b5 {[%clk 0:00:16]} 53. Kd2 {[%clk 0:00:19]}  b4 {[%clk 0:00:17]} 54. Kc2 {[%clk 0:00:20]}  Ne4 {[%clk 0:00:17]} 55. Kb2 {[%clk 0:00:19]}  g4 {[%clk 0:00:18]} 56. Kc2 {[%clk 0:00:16]}  g3 {[%clk 0:00:18]} 0-1


[Site "https://www.chess.com"]

[Event "Titled Tuesday Blitz July 4 Early 2023"]
[White "Hajiyev, Kanan"]
[Black "Mazurkiewicz, Michal"]
[WhiteFideId "13404148"]
[BlackFideId "1124943"]
[WhiteElo "2525"]
[BlackElo "2415"]
[Result "1-0"]
[Round "8"]
[TimeControl "180+2"]
[Date "2023.07.04"]
[WhiteClock "0:02:11"]
[BlackClock "0:00:00"]
[Board "118"]

1. d4 {[%clk 0:03:00]}  Nf6 {[%clk 0:02:59]} 2. Nf3 {[%clk 0:03:01]}  g6 {[%clk 0:02:59]} 3. c4 {[%clk 0:03:02]}  Bg7 {[%clk 0:02:58]} 4. g3 {[%clk 0:03:03]}  O-O {[%clk 0:02:59]} 5. Bg2 {[%clk 0:03:04]}  d6 {[%clk 0:02:59]} 6. O-O {[%clk 0:03:05]}  c5 {[%clk 0:03:00]} 7. b3 {[%clk 0:03:06]}  cxd4 {[%clk 0:03:00]} 8. Nxd4 {[%clk 0:03:06]}  Nc6 {[%clk 0:02:58]} 9. Bb2 {[%clk 0:03:07]}  Nxd4 {[%clk 0:02:58]} 10. Bxd4 {[%clk 0:03:08]}  Qa5 {[%clk 0:02:58]} 11. Qd2 {[%clk 0:03:07]}  Qh5 {[%clk 0:02:56]} 12. Nc3 {[%clk 0:03:07]}  Bh3 {[%clk 0:02:53]} 13. Rad1 {[%clk 0:03:05]}  Ng4 {[%clk 0:02:46]} 14. Bxg7 {[%clk 0:02:53]}  Bxg2 {[%clk 0:02:42]} 15. Kxg2 {[%clk 0:02:54]}  Qxh2+ {[%clk 0:02:27]} 16. Kf3 {[%clk 0:02:54]}  Kxg7 {[%clk 0:02:27]} 17. Kxg4 {[%clk 0:02:32]}  Qg2 {[%clk 0:00:42]} 18. Kf4 {[%clk 0:02:31]}  e5+ {[%clk 0:00:34]} 19. Ke3 {[%clk 0:02:31]}  f5 {[%clk 0:00:35]} 20. Kd3 {[%clk 0:02:31]}  b5 {[%clk 0:00:21]} 21. Nxb5 {[%clk 0:02:28]}  d5 {[%clk 0:00:20]} 22. Kc3 {[%clk 0:02:20]}  d4+ {[%clk 0:00:05]} 23. Kb2 {[%clk 0:02:19]}  Rfd8 {[%clk 0:00:02]} 24. Nc7 {[%clk 0:02:18]}  Rac8 {[%clk 0:00:02]} 25. Ne6+ {[%clk 0:02:19]}  Kf6 {[%clk 0:00:02]} 26. Nxd8 {[%clk 0:02:20]}  Rxd8 {[%clk 0:00:03]} 27. Qa5 {[%clk 0:02:12]}  e4 {[%clk 0:00:00]} 28. Qxd8+ {[%clk 0:02:11]} 1-0


[Site "https://www.chess.com"]

[Event "Titled Tuesday Blitz July 4 Early 2023"]
[White "GAO"]
[Black "Turzo, Attila"]
[BlackFideId "704954"]
[WhiteElo "2404"]
[BlackElo "2520"]
[Result "1-0"]
[Round "8"]
[TimeControl "180+2"]
[Date "2023.07.04"]
[WhiteClock "0:00:13"]
[BlackClock "0:00:06"]
[Board "121"]

1. Nf3 {[%clk 0:03:00]}  Nf6 {[%clk 0:02:59]} 2. b3 {[%clk 0:03:00]}  g6 {[%clk 0:02:58]} 3. Bb2 {[%clk 0:03:00]}  Bg7 {[%clk 0:02:59]} 4. e3 {[%clk 0:03:01]}  O-O {[%clk 0:02:59]} 5. c4 {[%clk 0:03:01]}  d6 {[%clk 0:02:59]} 6. Be2 {[%clk 0:03:01]}  e5 {[%clk 0:02:55]} 7. O-O {[%clk 0:03:00]}  Nc6 {[%clk 0:02:50]} 8. Nc3 {[%clk 0:03:01]}  h6 {[%clk 0:02:46]} 9. Qc2 {[%clk 0:03:00]}  Bf5 {[%clk 0:02:40]} 10. d3 {[%clk 0:02:51]}  Qd7 {[%clk 0:02:38]} 11. Nd5 {[%clk 0:02:39]}  Nxd5 {[%clk 0:02:24]} 12. cxd5 {[%clk 0:02:38]}  Ne7 {[%clk 0:02:24]} 13. Rac1 {[%clk 0:02:35]}  c6 {[%clk 0:02:18]} 14. e4 {[%clk 0:02:13]}  Bg4 {[%clk 0:02:16]} 15. h3 {[%clk 0:02:04]}  Bxf3 {[%clk 0:02:15]} 16. Bxf3 {[%clk 0:02:05]}  c5 {[%clk 0:02:00]} 17. Bg4 {[%clk 0:01:49]}  f5 {[%clk 0:01:59]} 18. Bf3 {[%clk 0:01:47]}  h5 {[%clk 0:01:33]} 19. exf5 {[%clk 0:01:42]}  Nxf5 {[%clk 0:01:33]} 20. b4 {[%clk 0:01:37]}  b6 {[%clk 0:01:31]} 21. Be4 {[%clk 0:01:37]}  Bh6 {[%clk 0:01:27]} 22. Rce1 {[%clk 0:01:31]}  Rac8 {[%clk 0:01:03]} 23. bxc5 {[%clk 0:01:30]}  bxc5 {[%clk 0:00:59]} 24. Kh2 {[%clk 0:01:18]}  Kh7 {[%clk 0:00:56]} 25. Qe2 {[%clk 0:01:14]}  Rb8 {[%clk 0:00:54]} 26. Ba1 {[%clk 0:01:09]}  Kg7 {[%clk 0:00:52]} 27. f4 {[%clk 0:01:08]}  Nd4 {[%clk 0:00:49]} 28. Bxd4 {[%clk 0:01:05]}  cxd4 {[%clk 0:00:46]} 29. fxe5 {[%clk 0:00:49]}  Bf4+ {[%clk 0:00:43]} 30. Rxf4 {[%clk 0:00:48]}  Rxf4 {[%clk 0:00:44]} 31. e6 {[%clk 0:00:48]}  Qe7 {[%clk 0:00:43]} 32. Rf1 {[%clk 0:00:47]}  Rxf1 {[%clk 0:00:39]} 33. Qxf1 {[%clk 0:00:47]}  Rb2 {[%clk 0:00:36]} 34. Qa1 {[%clk 0:00:45]}  Qb7 {[%clk 0:00:29]} 35. Qg1 {[%clk 0:00:42]}  Qb4 {[%clk 0:00:20]} 36. Qf1 {[%clk 0:00:40]}  Qb7 {[%clk 0:00:18]} 37. Qg1 {[%clk 0:00:39]}  Rb4 {[%clk 0:00:16]} 38. Qf2 {[%clk 0:00:36]}  Qe7 {[%clk 0:00:16]} 39. Qd2 {[%clk 0:00:34]}  a5 {[%clk 0:00:16]} 40. Qf4 {[%clk 0:00:30]}  Rb6 {[%clk 0:00:13]} 41. Qf2 {[%clk 0:00:25]}  Qf6 {[%clk 0:00:13]} 42. Qc2 {[%clk 0:00:24]}  Qe5+ {[%clk 0:00:10]} 43. Kg1 {[%clk 0:00:22]}  Rb7 {[%clk 0:00:09]} 44. a4 {[%clk 0:00:14]}  Qxe4 {[%clk 0:00:06]} 45. dxe4 {[%clk 0:00:13]} 1-0


[Site "https://www.chess.com"]

[Event "Titled Tuesday Blitz July 4 Early 2023"]
[White "Vyatkin, Dmitry"]
[Black "Tinmaz, Kerem"]
[WhiteFideId "4171900"]
[BlackFideId "44559151"]
[WhiteElo "2520"]
[BlackElo "2390"]
[Result "1-0"]
[Round "8"]
[TimeControl "180+2"]
[Date "2023.07.04"]
[WhiteClock "0:00:12"]
[BlackClock "0:00:00"]
[Board "122"]

1. d4 {[%clk 0:03:00]}  d5 {[%clk 0:02:58]} 2. c4 {[%clk 0:02:59]}  c6 {[%clk 0:02:59]} 3. Nf3 {[%clk 0:02:58]}  Nf6 {[%clk 0:02:59]} 4. g3 {[%clk 0:02:58]}  Bf5 {[%clk 0:02:57]} 5. Bg2 {[%clk 0:02:58]}  e6 {[%clk 0:02:56]} 6. O-O {[%clk 0:02:57]}  Be7 {[%clk 0:02:56]} 7. b3 {[%clk 0:02:54]}  O-O {[%clk 0:02:56]} 8. Nc3 {[%clk 0:02:55]}  Nbd7 {[%clk 0:02:55]} 9. Bb2 {[%clk 0:02:44]}  a6 {[%clk 0:02:52]} 10. Ne5 {[%clk 0:02:38]}  Nxe5 {[%clk 0:02:51]} 11. dxe5 {[%clk 0:02:38]}  Nd7 {[%clk 0:02:52]} 12. cxd5 {[%clk 0:02:37]}  cxd5 {[%clk 0:02:49]} 13. e4 {[%clk 0:02:37]}  dxe4 {[%clk 0:02:48]} 14. Nxe4 {[%clk 0:02:36]}  Bxe4 {[%clk 0:02:36]} 15. Bxe4 {[%clk 0:02:36]}  Nc5 {[%clk 0:02:37]} 16. Bc2 {[%clk 0:02:25]}  Qxd1 {[%clk 0:02:24]} 17. Rfxd1 {[%clk 0:02:25]}  Rfd8 {[%clk 0:02:25]} 18. b4 {[%clk 0:01:57]}  Nd7 {[%clk 0:02:16]} 19. a3 {[%clk 0:01:57]}  Rac8 {[%clk 0:02:10]} 20. Be4 {[%clk 0:01:56]}  Rc7 {[%clk 0:01:54]} 21. Bd4 {[%clk 0:01:45]}  b5 {[%clk 0:01:27]} 22. Rd3 {[%clk 0:01:36]}  Nb8 {[%clk 0:00:27]} 23. Rad1 {[%clk 0:01:33]}  Rcd7 {[%clk 0:00:16]} 24. Bb6 {[%clk 0:01:23]}  Rxd3 {[%clk 0:00:15]} 25. Rxd3 {[%clk 0:01:23]}  Rxd3 {[%clk 0:00:14]} 26. Bxd3 {[%clk 0:01:24]}  Nc6 {[%clk 0:00:15]} 27. Bc7 {[%clk 0:01:19]}  Bd8 {[%clk 0:00:06]} 28. Bd6 {[%clk 0:01:11]}  Be7 {[%clk 0:00:04]} 29. Bxe7 {[%clk 0:00:48]}  Nxe7 {[%clk 0:00:03]} 30. Be4 {[%clk 0:00:48]}  Kf8 {[%clk 0:00:03]} 31. Bb7 {[%clk 0:00:45]}  Nd5 {[%clk 0:00:02]} 32. Bxa6 {[%clk 0:00:44]}  Nc3 {[%clk 0:00:02]} 33. f4 {[%clk 0:00:36]}  Ke7 {[%clk 0:00:02]} 34. Kf2 {[%clk 0:00:36]}  Kd7 {[%clk 0:00:02]} 35. Ke3 {[%clk 0:00:36]}  Kc6 {[%clk 0:00:03]} 36. g4 {[%clk 0:00:25]}  Nb1 {[%clk 0:00:03]} 37. f5 {[%clk 0:00:25]}  Nxa3 {[%clk 0:00:03]} 38. Kd3 {[%clk 0:00:24]}  Nc4 {[%clk 0:00:02]} 39. Kd4 {[%clk 0:00:23]}  Nd2 {[%clk 0:00:02]} 40. fxe6 {[%clk 0:00:20]}  fxe6 {[%clk 0:00:03]} 41. Bc8 {[%clk 0:00:20]}  Nf3+ {[%clk 0:00:03]} 42. Ke4 {[%clk 0:00:20]}  Nxh2 {[%clk 0:00:03]} 43. Bxe6 {[%clk 0:00:20]}  Nf1 {[%clk 0:00:02]} 44. Bd5+ {[%clk 0:00:19]}  Kd7 {[%clk 0:00:02]} 45. Kd3 {[%clk 0:00:17]}  Nh2 {[%clk 0:00:01]} 46. g5 {[%clk 0:00:16]}  Ng4 {[%clk 0:00:01]} 47. Kd4 {[%clk 0:00:15]}  h6 {[%clk 0:00:01]} 48. gxh6 {[%clk 0:00:15]}  gxh6 {[%clk 0:00:02]} 49. Bf3 {[%clk 0:00:15]}  Nf2 {[%clk 0:00:00]} 50. Ke3 {[%clk 0:00:12]} 1-0


[Site "https://www.chess.com"]

[Event "Titled Tuesday Blitz July 4 Early 2023"]
[White "Ljukin, Sergei"]
[Black "Rozhkov, Viacheslav"]
[WhiteFideId "14102200"]
[BlackFideId "4181484"]
[WhiteElo "2520"]
[BlackElo "2388"]
[Result "1/2-1/2"]
[Round "8"]
[TimeControl "180+2"]
[Date "2023.07.04"]
[WhiteClock "0:00:04"]
[BlackClock "0:00:04"]
[Board "123"]

1. e4 {[%clk 0:03:00]}  c5 {[%clk 0:02:59]} 2. Nf3 {[%clk 0:03:01]}  Nc6 {[%clk 0:03:00]} 3. d4 {[%clk 0:03:01]}  cxd4 {[%clk 0:03:01]} 4. Nxd4 {[%clk 0:03:02]}  Nf6 {[%clk 0:03:01]} 5. Nc3 {[%clk 0:03:02]}  e6 {[%clk 0:03:02]} 6. Nxc6 {[%clk 0:03:02]}  bxc6 {[%clk 0:03:02]} 7. e5 {[%clk 0:03:03]}  Nd5 {[%clk 0:03:03]} 8. Ne4 {[%clk 0:03:03]}  Qc7 {[%clk 0:03:03]} 9. f4 {[%clk 0:03:03]}  Rb8 {[%clk 0:03:04]} 10. Be2 {[%clk 0:03:00]}  Be7 {[%clk 0:02:47]} 11. O-O {[%clk 0:02:59]}  O-O {[%clk 0:02:47]} 12. Kh1 {[%clk 0:02:50]}  f5 {[%clk 0:02:46]} 13. Nd6 {[%clk 0:02:13]}  Bxd6 {[%clk 0:02:21]} 14. exd6 {[%clk 0:02:12]}  Qb6 {[%clk 0:02:22]} 15. Rf3 {[%clk 0:02:08]}  Ba6 {[%clk 0:02:17]} 16. c4 {[%clk 0:02:04]}  Nf6 {[%clk 0:02:17]} 17. b3 {[%clk 0:01:38]}  Ng4 {[%clk 0:02:16]} 18. Qe1 {[%clk 0:01:30]}  Qd4 {[%clk 0:02:14]} 19. Bd2 {[%clk 0:01:27]}  Qxd6 {[%clk 0:02:05]} 20. h3 {[%clk 0:01:25]}  Nf6 {[%clk 0:02:05]} 21. Bc3 {[%clk 0:01:25]}  c5 {[%clk 0:01:58]} 22. Rd1 {[%clk 0:01:24]}  Qc6 {[%clk 0:01:55]} 23. Rfd3 {[%clk 0:01:20]}  Rbe8 {[%clk 0:01:12]} 24. Bf3 {[%clk 0:01:15]}  Qb6 {[%clk 0:01:08]} 25. Bxf6 {[%clk 0:01:13]}  Rxf6 {[%clk 0:01:06]} 26. Rxd7 {[%clk 0:01:14]}  Bc8 {[%clk 0:01:03]} 27. R7d6 {[%clk 0:01:13]}  Qc7 {[%clk 0:01:00]} 28. Qe5 {[%clk 0:01:10]}  Rff8 {[%clk 0:00:49]} 29. Qb2 {[%clk 0:00:38]}  Rd8 {[%clk 0:00:44]} 30. Qd2 {[%clk 0:00:38]}  Rxd6 {[%clk 0:00:37]} 31. Qxd6 {[%clk 0:00:38]}  Qa5 {[%clk 0:00:37]} 32. a4 {[%clk 0:00:29]}  Qb4 {[%clk 0:00:36]} 33. Rd3 {[%clk 0:00:30]}  Qe1+ {[%clk 0:00:19]} 34. Kh2 {[%clk 0:00:29]}  Qf2 {[%clk 0:00:19]} 35. Rd1 {[%clk 0:00:22]}  Qe3 {[%clk 0:00:18]} 36. Rd3 {[%clk 0:00:21]}  Qf2 {[%clk 0:00:18]} 37. Qe5 {[%clk 0:00:17]}  Qc2 {[%clk 0:00:15]} 38. Qe3 {[%clk 0:00:15]}  h6 {[%clk 0:00:12]} 39. Rd6 {[%clk 0:00:13]}  Kh7 {[%clk 0:00:07]} 40. Qxc5 {[%clk 0:00:08]}  Qxb3 {[%clk 0:00:07]} 41. Rc6 {[%clk 0:00:08]}  Bb7 {[%clk 0:00:04]} 42. Qxf8 {[%clk 0:00:04]}  Bxc6 {[%clk 0:00:04]} 43. Bxc6 {[%clk 0:00:05]}  Qxc4 {[%clk 0:00:05]} 44. Bf3 {[%clk 0:00:05]}  Qxf4+ {[%clk 0:00:05]} 45. Kg1 {[%clk 0:00:05]}  Qe3+ {[%clk 0:00:05]} 46. Kh2 {[%clk 0:00:05]}  Qf4+ {[%clk 0:00:05]} 47. Kg1 {[%clk 0:00:05]}  Qe3+ {[%clk 0:00:06]} 48. Kf1 {[%clk 0:00:06]}  Qc1+ {[%clk 0:00:04]} 49. Kf2 {[%clk 0:00:06]}  Qd2+ {[%clk 0:00:03]} 50. Kg3 {[%clk 0:00:05]}  Qg5+ {[%clk 0:00:03]} 51. Kf2 {[%clk 0:00:04]}  Qd2+ {[%clk 0:00:03]} 52. Be2 {[%clk 0:00:04]}  Qf4+ {[%clk 0:00:02]} 53. Ke1 {[%clk 0:00:05]}  Qc1+ {[%clk 0:00:02]} 54. Kf2 {[%clk 0:00:04]}  Qf4+ {[%clk 0:00:03]} 55. Kg1 {[%clk 0:00:04]}  Qe3+ {[%clk 0:00:03]} 56. Kf1 {[%clk 0:00:05]}  Qc1+ {[%clk 0:00:03]} 57. Kf2 {[%clk 0:00:04]}  Qf4+ {[%clk 0:00:04]} 1/2-1/2


[Site "https://www.chess.com"]

[Event "Titled Tuesday Blitz July 4 Early 2023"]
[White "Yelisieiev, Yevhenii"]
[Black "Wartiovaara, Oliver"]
[WhiteFideId "14139642"]
[BlackFideId "513024"]
[WhiteElo "2519"]
[BlackElo "2387"]
[Result "1-0"]
[Round "8"]
[TimeControl "180+2"]
[Date "2023.07.04"]
[WhiteClock "0:00:58"]
[BlackClock "0:00:25"]
[Board "124"]

1. d4 {[%clk 0:02:58]}  d5 {[%clk 0:02:56]} 2. Nf3 {[%clk 0:02:59]}  c6 {[%clk 0:02:51]} 3. c4 {[%clk 0:02:59]}  e6 {[%clk 0:02:50]} 4. Nc3 {[%clk 0:02:59]}  dxc4 {[%clk 0:02:49]} 5. a4 {[%clk 0:02:58]}  Bb4 {[%clk 0:02:48]} 6. e3 {[%clk 0:02:58]}  b5 {[%clk 0:02:48]} 7. Bd2 {[%clk 0:02:58]}  Nf6 {[%clk 0:02:33]} 8. axb5 {[%clk 0:02:56]}  Bxc3 {[%clk 0:02:33]} 9. Bxc3 {[%clk 0:02:56]}  cxb5 {[%clk 0:02:34]} 10. b3 {[%clk 0:02:56]}  Ne4 {[%clk 0:02:15]} 11. Ba5 {[%clk 0:02:52]}  Qd5 {[%clk 0:02:09]} 12. bxc4 {[%clk 0:02:52]}  bxc4 {[%clk 0:02:08]} 13. Ne5 {[%clk 0:02:42]}  Ba6 {[%clk 0:02:01]} 14. Nxc4 {[%clk 0:02:22]}  Bxc4 {[%clk 0:01:39]} 15. Qa4+ {[%clk 0:02:22]}  Qc6 {[%clk 0:01:39]} 16. Bxc4 {[%clk 0:02:14]}  Qxa4 {[%clk 0:01:38]} 17. Rxa4 {[%clk 0:02:15]}  Nc6 {[%clk 0:01:38]} 18. O-O {[%clk 0:01:55]}  Ke7 {[%clk 0:01:24]} 19. Rfa1 {[%clk 0:01:52]}  Rhc8 {[%clk 0:01:16]} 20. Be1 {[%clk 0:01:50]}  Nd6 {[%clk 0:01:14]} 21. Bd3 {[%clk 0:01:50]}  a5 {[%clk 0:01:08]} 22. f3 {[%clk 0:01:35]}  f5 {[%clk 0:00:54]} 23. Kf2 {[%clk 0:01:34]}  Rab8 {[%clk 0:00:50]} 24. R1a2 {[%clk 0:01:28]}  e5 {[%clk 0:00:45]} 25. dxe5 {[%clk 0:01:16]}  Nxe5 {[%clk 0:00:43]} 26. Ba6 {[%clk 0:01:08]}  Rc1 {[%clk 0:00:35]} 27. Rxa5 {[%clk 0:01:03]}  Rb3 {[%clk 0:00:25]} 28. Rxe5+ {[%clk 0:00:58]} 1-0


[Site "https://www.chess.com"]

[Event "Titled Tuesday Blitz July 4 Early 2023"]
[White "Fernandez Siles, Luis"]
[Black "David, Bogdan-Emanuel"]
[WhiteFideId "2209420"]
[BlackFideId "1229907"]
[WhiteElo "2380"]
[BlackElo "2517"]
[Result "0-1"]
[Round "8"]
[TimeControl "180+2"]
[Date "2023.07.04"]
[WhiteClock "0:00:08"]
[BlackClock "0:00:18"]
[Board "126"]

1. e4 {[%clk 0:02:57]}  c5 {[%clk 0:02:57]} 2. Nf3 {[%clk 0:02:56]}  Nc6 {[%clk 0:02:56]} 3. d4 {[%clk 0:02:57]}  cxd4 {[%clk 0:02:57]} 4. Nxd4 {[%clk 0:02:57]}  e5 {[%clk 0:02:57]} 5. Nb5 {[%clk 0:02:57]}  d6 {[%clk 0:02:58]} 6. N1c3 {[%clk 0:02:56]}  a6 {[%clk 0:02:58]} 7. Na3 {[%clk 0:02:56]}  b5 {[%clk 0:02:59]} 8. Nd5 {[%clk 0:02:56]}  Nge7 {[%clk 0:03:00]} 9. c4 {[%clk 0:02:55]}  Nxd5 {[%clk 0:03:00]} 10. cxd5 {[%clk 0:02:55]}  Nd4 {[%clk 0:03:00]} 11. Be3 {[%clk 0:02:55]}  Be7 {[%clk 0:02:59]} 12. Nc2 {[%clk 0:02:53]}  Nxc2+ {[%clk 0:02:58]} 13. Qxc2 {[%clk 0:02:53]}  O-O {[%clk 0:02:53]} 14. Bd3 {[%clk 0:02:53]}  Qa5+ {[%clk 0:02:51]} 15. Bd2 {[%clk 0:02:51]}  Qb6 {[%clk 0:02:51]} 16. Be3 {[%clk 0:02:47]}  Qa5+ {[%clk 0:02:51]} 17. Bd2 {[%clk 0:02:47]}  Qd8 {[%clk 0:02:47]} 18. O-O {[%clk 0:02:41]}  Bd7 {[%clk 0:02:46]} 19. a4 {[%clk 0:02:35]}  bxa4 {[%clk 0:02:42]} 20. Bb4 {[%clk 0:02:30]}  Qb6 {[%clk 0:02:40]} 21. Qd2 {[%clk 0:02:28]}  Rfb8 {[%clk 0:02:30]} 22. Ba3 {[%clk 0:02:28]}  Qd4 {[%clk 0:02:24]} 23. Qe2 {[%clk 0:02:09]}  Bb5 {[%clk 0:02:08]} 24. Rfd1 {[%clk 0:02:09]}  Qb6 {[%clk 0:01:59]} 25. Rac1 {[%clk 0:02:03]}  Bg5 {[%clk 0:01:55]} 26. Rc2 {[%clk 0:01:58]}  Rc8 {[%clk 0:01:56]} 27. g3 {[%clk 0:01:54]}  Bh6 {[%clk 0:01:42]} 28. Kg2 {[%clk 0:01:33]}  g6 {[%clk 0:01:38]} 29. h4 {[%clk 0:01:32]}  Bd7 {[%clk 0:01:20]} 30. Rxc8+ {[%clk 0:01:16]}  Bxc8 {[%clk 0:01:06]} 31. h5 {[%clk 0:01:17]}  Bd7 {[%clk 0:00:59]} 32. hxg6 {[%clk 0:01:11]}  hxg6 {[%clk 0:01:00]} 33. Rh1 {[%clk 0:00:54]}  Bg7 {[%clk 0:00:59]} 34. Rc1 {[%clk 0:00:52]}  f5 {[%clk 0:00:46]} 35. exf5 {[%clk 0:00:38]}  gxf5 {[%clk 0:00:46]} 36. Rh1 {[%clk 0:00:38]}  e4 {[%clk 0:00:45]} 37. Bb1 {[%clk 0:00:34]}  Qd4 {[%clk 0:00:41]} 38. Bxd6 {[%clk 0:00:28]}  Qxd5 {[%clk 0:00:39]} 39. Ba3 {[%clk 0:00:27]}  Bb5 {[%clk 0:00:23]} 40. Qh5 {[%clk 0:00:26]}  e3+ {[%clk 0:00:19]} 41. Kh3 {[%clk 0:00:08]}  Qxh1# {[%clk 0:00:18]} 0-1


[Site "https://www.chess.com"]

[Event "Titled Tuesday Blitz July 4 Early 2023"]
[White "Labussiere, Yago"]
[Black "Novikov, Evgenij"]
[WhiteFideId "2186969"]
[BlackFideId "4125380"]
[WhiteElo "2376"]
[BlackElo "2513"]
[Result "1-0"]
[Round "8"]
[TimeControl "180+2"]
[Date "2023.07.04"]
[WhiteClock "0:01:16"]
[BlackClock "0:00:00"]
[Board "128"]

1. d4 {[%clk 0:03:00]}  d5 {[%clk 0:02:59]} 2. c4 {[%clk 0:03:00]}  e6 {[%clk 0:02:59]} 3. Nf3 {[%clk 0:02:59]}  Nf6 {[%clk 0:02:59]} 4. cxd5 {[%clk 0:03:00]}  exd5 {[%clk 0:02:59]} 5. Nc3 {[%clk 0:03:00]}  c6 {[%clk 0:02:55]} 6. Bg5 {[%clk 0:03:00]}  Bf5 {[%clk 0:02:55]} 7. Qb3 {[%clk 0:02:58]}  Bc8 {[%clk 0:02:43]} 8. O-O-O {[%clk 0:02:48]}  Be7 {[%clk 0:02:38]} 9. e3 {[%clk 0:02:43]}  h6 {[%clk 0:02:37]} 10. Bxf6 {[%clk 0:02:32]}  Bxf6 {[%clk 0:02:35]} 11. Bd3 {[%clk 0:02:33]}  O-O {[%clk 0:02:25]} 12. Rhg1 {[%clk 0:02:22]}  Qb6 {[%clk 0:02:18]} 13. g4 {[%clk 0:02:20]}  Qxb3 {[%clk 0:02:16]} 14. axb3 {[%clk 0:02:20]}  g5 {[%clk 0:01:51]} 15. h4 {[%clk 0:02:07]}  b5 {[%clk 0:01:25]} 16. Ne2 {[%clk 0:02:00]}  Re8 {[%clk 0:01:18]} 17. Ng3 {[%clk 0:01:54]}  Bxg4 {[%clk 0:01:09]} 18. hxg5 {[%clk 0:01:46]}  hxg5 {[%clk 0:01:01]} 19. Be2 {[%clk 0:01:39]}  Bxf3 {[%clk 0:00:53]} 20. Bxf3 {[%clk 0:01:39]}  Kf8 {[%clk 0:00:50]} 21. Nf5 {[%clk 0:01:35]}  Nd7 {[%clk 0:00:34]} 22. Rh1 {[%clk 0:01:35]}  Re6 {[%clk 0:00:20]} 23. Rh7 {[%clk 0:01:34]}  Ke8 {[%clk 0:00:18]} 24. Bh5 {[%clk 0:01:33]}  Kd8 {[%clk 0:00:12]} 25. Bxf7 {[%clk 0:01:31]}  Nf8 {[%clk 0:00:12]} 26. Rh6 {[%clk 0:01:27]}  Kd7 {[%clk 0:00:06]} 27. Rdh1 {[%clk 0:01:22]}  a5 {[%clk 0:00:04]} 28. Bxe6+ {[%clk 0:01:20]}  Kxe6 {[%clk 0:00:05]} 29. Ng7+ {[%clk 0:01:16]}  Kf7 {[%clk 0:00:05]} 30. Nh5 {[%clk 0:01:17]}  Nd7 {[%clk 0:00:03]} 31. Nxf6 {[%clk 0:01:17]}  Nxf6 {[%clk 0:00:04]} 32. Rh8 {[%clk 0:01:18]}  Ra7 {[%clk 0:00:03]} 33. Rc8 {[%clk 0:01:18]}  a4 {[%clk 0:00:02]} 34. bxa4 {[%clk 0:01:16]}  bxa4 {[%clk 0:00:02]} 35. Rxc6 {[%clk 0:01:16]}  a3 {[%clk 0:00:02]} 36. bxa3 {[%clk 0:01:16]}  Rxa3 {[%clk 0:00:02]} 37. Kb2 {[%clk 0:01:17]}  Ra7 {[%clk 0:00:01]} 38. Rg1 {[%clk 0:01:16]}  Rb7+ {[%clk 0:00:01]} 39. Kc2 {[%clk 0:01:16]}  Ne4 {[%clk 0:00:00]} 40. f3 {[%clk 0:01:16]} 1-0


[Site "https://www.chess.com"]